[Event "Titled Tuesday Blitz November 07 Late 2023"]
[White "Aravindh, Chithambaram VR."]
[Black "Hakobyan, Aram"]
[WhiteFideId "5072786"]
[BlackFideId "13306677"]
[WhiteElo "2946"]
[BlackElo "3069"]
[Result "1-0"]
[Round "10"]
[TimeControl "180+1"]
[Date "2023.11.07"]
[WhiteClock "0:00:04"]
[BlackClock "0:00:01"]
[Board "3"]

1. b3 {[%clk 0:03:00]}  d5 {[%clk 0:02:59]} 2. Bb2 {[%clk 0:03:00]}  c5 {[%clk 0:02:59]} 3. e3 {[%clk 0:02:58]}  a6 {[%clk 0:02:55]} 4. Nf3 {[%clk 0:02:58]}  f6 {[%clk 0:02:48]} 5. d4 {[%clk 0:02:57]}  cxd4 {[%clk 0:02:48]} 6. exd4 {[%clk 0:02:58]}  Nc6 {[%clk 0:02:48]} 7. c4 {[%clk 0:02:56]}  e6 {[%clk 0:02:47]} 8. Bd3 {[%clk 0:02:50]}  Bd6 {[%clk 0:02:46]} 9. O-O {[%clk 0:02:50]}  Nge7 {[%clk 0:02:47]} 10. Re1 {[%clk 0:02:47]}  O-O {[%clk 0:02:47]} 11. Nbd2 {[%clk 0:02:48]}  Bd7 {[%clk 0:02:38]} 12. Rc1 {[%clk 0:02:46]}  Rc8 {[%clk 0:02:36]} 13. a3 {[%clk 0:02:38]}  Ng6 {[%clk 0:02:35]} 14. g3 {[%clk 0:02:33]}  Nce7 {[%clk 0:02:21]} 15. b4 {[%clk 0:02:19]}  Bb8 {[%clk 0:02:01]} 16. cxd5 {[%clk 0:02:13]}  exd5 {[%clk 0:01:48]} 17. Rxc8 {[%clk 0:02:10]}  Qxc8 {[%clk 0:01:47]} 18. Nb3 {[%clk 0:02:11]}  Bf5 {[%clk 0:01:42]} 19. Nc5 {[%clk 0:02:10]}  Bg4 {[%clk 0:01:10]} 20. Be2 {[%clk 0:02:04]}  b6 {[%clk 0:01:00]} 21. Nd3 {[%clk 0:01:54]}  Re8 {[%clk 0:00:57]} 22. Nd2 {[%clk 0:01:50]}  Bxe2 {[%clk 0:00:55]} 23. Qxe2 {[%clk 0:01:51]}  Kf7 {[%clk 0:00:55]} 24. Rc1 {[%clk 0:01:33]}  Qd7 {[%clk 0:00:52]} 25. Nf1 {[%clk 0:01:31]}  Nf5 {[%clk 0:00:43]} 26. Qh5 {[%clk 0:01:31]}  Rc8 {[%clk 0:00:24]} 27. Re1 {[%clk 0:01:18]}  Ne7 {[%clk 0:00:16]} 28. Ne3 {[%clk 0:01:14]}  Kg8 {[%clk 0:00:14]} 29. Kg2 {[%clk 0:01:05]}  Nf8 {[%clk 0:00:08]} 30. h4 {[%clk 0:01:02]}  Rd8 {[%clk 0:00:08]} 31. Qf3 {[%clk 0:00:57]}  Ne6 {[%clk 0:00:05]} 32. Ng4 {[%clk 0:00:52]}  Nf8 {[%clk 0:00:02]} 33. h5 {[%clk 0:00:49]}  Nf5 {[%clk 0:00:01]} 34. h6 {[%clk 0:00:47]}  Ng6 {[%clk 0:00:02]} 35. Rh1 {[%clk 0:00:36]}  Rf8 {[%clk 0:00:02]} 36. hxg7 {[%clk 0:00:30]}  Kxg7 {[%clk 0:00:03]} 37. Bc1 {[%clk 0:00:28]}  Qe6 {[%clk 0:00:03]} 38. Nh6 {[%clk 0:00:08]}  Nxd4 {[%clk 0:00:03]} 39. Qe3 {[%clk 0:00:06]}  Qe4+ {[%clk 0:00:03]} 40. f3 {[%clk 0:00:06]}  Qxe3 {[%clk 0:00:03]} 41. Bxe3 {[%clk 0:00:07]}  Nc2 {[%clk 0:00:02]} 42. Nf5+ {[%clk 0:00:07]}  Kg8 {[%clk 0:00:02]} 43. Bxb6 {[%clk 0:00:07]}  Re8 {[%clk 0:00:03]} 44. f4 {[%clk 0:00:06]}  Nxa3 {[%clk 0:00:03]} 45. Nc5 {[%clk 0:00:06]}  Nc4 {[%clk 0:00:03]} 46. Nd7 {[%clk 0:00:06]}  Re6 {[%clk 0:00:02]} 47. Bd4 {[%clk 0:00:05]}  Nd2 {[%clk 0:00:02]} 48. Nxf6+ {[%clk 0:00:05]}  Kf8 {[%clk 0:00:02]} 49. Rxh7 {[%clk 0:00:04]}  Re2+ {[%clk 0:00:03]} 50. Kh3 {[%clk 0:00:04]}  Nf3 {[%clk 0:00:03]} 51. Bc5+ {[%clk 0:00:04]}  Ne7 {[%clk 0:00:03]} 52. Bxe7+ {[%clk 0:00:03]}  Rxe7 {[%clk 0:00:02]} 53. Nxe7 {[%clk 0:00:04]}  d4 {[%clk 0:00:01]} 54. Ng6# {[%clk 0:00:04]} 1-0


[Site "https://www.chess.com"]

[Event "Titled Tuesday Blitz November 07 Late 2023"]
[White "Sarana, Alexey"]
[Black "Szpar, Milosz"]
[WhiteFideId "24133795"]
[BlackFideId "1184989"]
[WhiteElo "2979"]
[BlackElo "2842"]
[Result "1-0"]
[Round "10"]
[TimeControl "180+1"]
[Date "2023.11.07"]
[WhiteClock "0:00:22"]
[BlackClock "0:00:00"]
[Board "7"]

1. d4 {[%clk 0:03:00]}  d5 {[%clk 0:02:54]} 2. c4 {[%clk 0:03:01]}  e6 {[%clk 0:02:54]} 3. Nc3 {[%clk 0:03:02]}  Nf6 {[%clk 0:02:54]} 4. cxd5 {[%clk 0:03:01]}  exd5 {[%clk 0:02:55]} 5. Bg5 {[%clk 0:03:02]}  c6 {[%clk 0:02:55]} 6. e3 {[%clk 0:03:02]}  Bd6 {[%clk 0:02:56]} 7. Bd3 {[%clk 0:03:02]}  O-O {[%clk 0:02:56]} 8. Nf3 {[%clk 0:03:02]}  Re8 {[%clk 0:02:54]} 9. Qc2 {[%clk 0:03:01]}  h6 {[%clk 0:02:52]} 10. Bh4 {[%clk 0:03:00]}  Be6 {[%clk 0:02:51]} 11. O-O {[%clk 0:02:58]}  Nbd7 {[%clk 0:02:52]} 12. Rae1 {[%clk 0:02:53]}  Qc7 {[%clk 0:02:47]} 13. Bg3 {[%clk 0:02:51]}  Bxg3 {[%clk 0:02:47]} 14. hxg3 {[%clk 0:02:52]}  Qd6 {[%clk 0:02:47]} 15. Ne2 {[%clk 0:02:51]}  Ne4 {[%clk 0:02:28]} 16. Nf4 {[%clk 0:02:47]}  Bg4 {[%clk 0:02:21]} 17. Nh2 {[%clk 0:02:44]}  Be6 {[%clk 0:02:15]} 18. Nxe6 {[%clk 0:02:39]}  Rxe6 {[%clk 0:02:12]} 19. Nf3 {[%clk 0:02:39]}  Rae8 {[%clk 0:02:02]} 20. b4 {[%clk 0:02:39]}  a6 {[%clk 0:01:54]} 21. a4 {[%clk 0:02:37]}  b5 {[%clk 0:01:50]} 22. axb5 {[%clk 0:02:35]}  axb5 {[%clk 0:01:50]} 23. Rb1 {[%clk 0:02:30]}  Ra8 {[%clk 0:01:47]} 24. Rfc1 {[%clk 0:02:28]}  Ra4 {[%clk 0:01:41]} 25. Bxe4 {[%clk 0:02:26]}  dxe4 {[%clk 0:01:40]} 26. Nd2 {[%clk 0:02:26]}  f5 {[%clk 0:01:25]} 27. g4 {[%clk 0:02:04]}  fxg4 {[%clk 0:01:02]} 28. Nxe4 {[%clk 0:02:04]}  Qe7 {[%clk 0:01:00]} 29. Ng3 {[%clk 0:01:41]}  Nf6 {[%clk 0:00:32]} 30. Qf5 {[%clk 0:01:36]}  Ra8 {[%clk 0:00:28]} 31. Rc5 {[%clk 0:01:33]}  Rf8 {[%clk 0:00:27]} 32. Qc2 {[%clk 0:01:31]}  Nd5 {[%clk 0:00:18]} 33. Rxc6 {[%clk 0:01:30]}  Rxf2 {[%clk 0:00:07]} 34. Rc8+ {[%clk 0:01:14]}  Rf8 {[%clk 0:00:06]} 35. Nf5 {[%clk 0:01:10]}  Qf7 {[%clk 0:00:03]} 36. Rf1 {[%clk 0:01:03]}  Rxc8 {[%clk 0:00:04]} 37. Qxc8+ {[%clk 0:01:00]}  Qe8 {[%clk 0:00:04]} 38. Qb7 {[%clk 0:00:44]}  Ne7 {[%clk 0:00:05]} 39. d5 {[%clk 0:00:42]}  Re5 {[%clk 0:00:02]} 40. d6 {[%clk 0:00:28]}  Nxf5 {[%clk 0:00:02]} 41. d7 {[%clk 0:00:29]}  Qf8 {[%clk 0:00:01]} 42. Qc8 {[%clk 0:00:27]}  Rd5 {[%clk 0:00:01]} 43. Qxf8+ {[%clk 0:00:21]}  Kxf8 {[%clk 0:00:00]} 44. Rxf5+ {[%clk 0:00:22]} 1-0


[Site "https://www.chess.com"]

[Event "Titled Tuesday Blitz November 07 Late 2023"]
[White "Rustemov, Alexander"]
[Black "Makhnev, Denis"]
[WhiteFideId "4119002"]
[BlackFideId "13707647"]
[WhiteElo "2827"]
[BlackElo "2958"]
[Result "1-0"]
[Round "10"]
[TimeControl "180+1"]
[Date "2023.11.07"]
[WhiteClock "0:00:30"]
[BlackClock "0:00:00"]
[Board "8"]

1. d4 {[%clk 0:02:48]}  d5 {[%clk 0:02:59]} 2. c4 {[%clk 0:02:48]}  e6 {[%clk 0:03:00]} 3. Nc3 {[%clk 0:02:49]}  c6 {[%clk 0:03:01]} 4. e3 {[%clk 0:02:49]}  f5 {[%clk 0:02:53]} 5. f4 {[%clk 0:02:48]}  Nh6 {[%clk 0:02:52]} 6. Nf3 {[%clk 0:02:48]}  Nf7 {[%clk 0:02:52]} 7. Bd3 {[%clk 0:02:44]}  Be7 {[%clk 0:02:51]} 8. Qc2 {[%clk 0:02:44]}  g6 {[%clk 0:02:48]} 9. O-O {[%clk 0:02:42]}  Nd7 {[%clk 0:02:48]} 10. Bd2 {[%clk 0:02:41]}  O-O {[%clk 0:02:48]} 11. Rac1 {[%clk 0:02:41]}  Nf6 {[%clk 0:02:47]} 12. Be1 {[%clk 0:02:29]}  Ne4 {[%clk 0:02:41]} 13. Bg3 {[%clk 0:02:11]}  Nxg3 {[%clk 0:02:39]} 14. hxg3 {[%clk 0:02:10]}  Bd7 {[%clk 0:02:40]} 15. Ne2 {[%clk 0:01:49]}  Kg7 {[%clk 0:02:32]} 16. c5 {[%clk 0:01:49]}  b6 {[%clk 0:02:25]} 17. b4 {[%clk 0:01:49]}  a5 {[%clk 0:02:25]} 18. a3 {[%clk 0:01:49]}  axb4 {[%clk 0:02:26]} 19. axb4 {[%clk 0:01:50]}  bxc5 {[%clk 0:02:27]} 20. bxc5 {[%clk 0:01:50]}  Qa5 {[%clk 0:02:28]} 21. Rb1 {[%clk 0:01:41]}  Rfb8 {[%clk 0:02:27]} 22. Rxb8 {[%clk 0:01:39]}  Rxb8 {[%clk 0:02:27]} 23. Rb1 {[%clk 0:01:40]}  Rxb1+ {[%clk 0:02:21]} 24. Qxb1 {[%clk 0:01:40]}  Qa3 {[%clk 0:02:22]} 25. Kf2 {[%clk 0:01:31]}  Bf6 {[%clk 0:02:20]} 26. Qb7 {[%clk 0:01:15]}  Be8 {[%clk 0:02:07]} 27. Ba6 {[%clk 0:01:14]}  Qa5 {[%clk 0:01:57]} 28. Ne5 {[%clk 0:01:13]}  Bxe5 {[%clk 0:01:47]} 29. fxe5 {[%clk 0:01:14]}  Qd8 {[%clk 0:01:48]} 30. Nf4 {[%clk 0:01:11]}  Bd7 {[%clk 0:01:48]} 31. Qb6 {[%clk 0:01:03]}  Qe8 {[%clk 0:01:46]} 32. Qc7 {[%clk 0:01:01]}  Kg8 {[%clk 0:01:37]} 33. Bb7 {[%clk 0:01:00]}  Nh6 {[%clk 0:01:36]} 34. Ke2 {[%clk 0:00:59]}  Ng4 {[%clk 0:01:05]} 35. Qb6 {[%clk 0:00:59]}  Kg7 {[%clk 0:00:50]} 36. Qa7 {[%clk 0:00:59]}  Kh6 {[%clk 0:00:50]} 37. Qa8 {[%clk 0:00:59]}  Qf7 {[%clk 0:00:38]} 38. Nh3 {[%clk 0:00:48]}  g5 {[%clk 0:00:24]} 39. Nf2 {[%clk 0:00:48]}  Nxf2 {[%clk 0:00:20]} 40. Kxf2 {[%clk 0:00:49]}  f4 {[%clk 0:00:20]} 41. exf4 {[%clk 0:00:47]}  gxf4 {[%clk 0:00:20]} 42. g4 {[%clk 0:00:47]}  Kg5 {[%clk 0:00:13]} 43. Bxc6 {[%clk 0:00:43]}  Bxc6 {[%clk 0:00:12]} 44. Qxc6 {[%clk 0:00:44]}  Kxg4 {[%clk 0:00:10]} 45. Qb5 {[%clk 0:00:32]}  f3 {[%clk 0:00:10]} 46. Qd3 {[%clk 0:00:32]}  fxg2+ {[%clk 0:00:10]} 47. Kxg2 {[%clk 0:00:32]}  Qf4 {[%clk 0:00:07]} 48. Qh3+ {[%clk 0:00:32]}  Kg5 {[%clk 0:00:07]} 49. Qg3+ {[%clk 0:00:33]}  Qxg3+ {[%clk 0:00:06]} 50. Kxg3 {[%clk 0:00:33]}  Kg6 {[%clk 0:00:03]} 51. c6 {[%clk 0:00:33]}  Kf7 {[%clk 0:00:04]} 52. c7 {[%clk 0:00:33]}  Ke7 {[%clk 0:00:05]} 53. c8=Q {[%clk 0:00:33]}  Kf7 {[%clk 0:00:06]} 54. Qd7+ {[%clk 0:00:33]}  Kg6 {[%clk 0:00:07]} 55. Qxe6+ {[%clk 0:00:34]}  Kh5 {[%clk 0:00:07]} 56. Qxd5 {[%clk 0:00:34]}  h6 {[%clk 0:00:08]} 57. Qe4 {[%clk 0:00:33]}  Kg5 {[%clk 0:00:00]} 58. e6 {[%clk 0:00:30]} 1-0


[Site "https://www.chess.com"]

[Event "Titled Tuesday Blitz November 07 Late 2023"]
[White "Rostovtsev, Dmitry"]
[Black "BardArtem"]
[WhiteFideId "34278320"]
[WhiteElo "2941"]
[BlackElo "2791"]
[Result "0-1"]
[Round "10"]
[TimeControl "180+1"]
[Date "2023.11.07"]
[WhiteClock "0:00:18"]
[BlackClock "0:01:10"]
[Board "9"]

1. d4 {[%clk 0:03:00]}  d5 {[%clk 0:03:00]} 2. c4 {[%clk 0:03:01]}  e6 {[%clk 0:02:52]} 3. Nc3 {[%clk 0:03:00]}  Nf6 {[%clk 0:02:52]} 4. cxd5 {[%clk 0:03:00]}  Nxd5 {[%clk 0:02:53]} 5. Nxd5 {[%clk 0:02:56]}  exd5 {[%clk 0:02:53]} 6. Nf3 {[%clk 0:02:56]}  c6 {[%clk 0:02:51]} 7. a3 {[%clk 0:02:55]}  a5 {[%clk 0:02:45]} 8. Bf4 {[%clk 0:02:55]}  Bd6 {[%clk 0:02:45]} 9. Bxd6 {[%clk 0:02:55]}  Qxd6 {[%clk 0:02:46]} 10. e3 {[%clk 0:02:55]}  O-O {[%clk 0:02:46]} 11. Bd3 {[%clk 0:02:55]}  Nd7 {[%clk 0:02:46]} 12. Qc2 {[%clk 0:02:55]}  h6 {[%clk 0:02:46]} 13. O-O {[%clk 0:02:54]}  Re8 {[%clk 0:02:45]} 14. b3 {[%clk 0:02:42]}  Nf6 {[%clk 0:02:43]} 15. Ne5 {[%clk 0:02:41]}  Ng4 {[%clk 0:02:40]} 16. Nxg4 {[%clk 0:02:30]}  Bxg4 {[%clk 0:02:41]} 17. Rfc1 {[%clk 0:02:30]}  g6 {[%clk 0:02:34]} 18. Qc5 {[%clk 0:02:28]}  Qxc5 {[%clk 0:02:28]} 19. Rxc5 {[%clk 0:02:29]}  Kf8 {[%clk 0:02:21]} 20. Kf1 {[%clk 0:02:29]}  Ke7 {[%clk 0:02:20]} 21. Ke1 {[%clk 0:02:29]}  Kd6 {[%clk 0:02:20]} 22. Rac1 {[%clk 0:02:29]}  Bd7 {[%clk 0:02:17]} 23. Kd2 {[%clk 0:02:28]}  g5 {[%clk 0:02:13]} 24. Rh1 {[%clk 0:01:56]}  f5 {[%clk 0:02:10]} 25. h4 {[%clk 0:01:52]}  Rh8 {[%clk 0:02:05]} 26. hxg5 {[%clk 0:01:51]}  hxg5 {[%clk 0:02:06]} 27. Rxh8 {[%clk 0:01:23]}  Rxh8 {[%clk 0:02:07]} 28. Rxa5 {[%clk 0:01:23]}  Rh2 {[%clk 0:01:49]} 29. Bf1 {[%clk 0:01:23]}  Rh1 {[%clk 0:01:49]} 30. Ke2 {[%clk 0:01:10]}  f4 {[%clk 0:01:49]} 31. exf4 {[%clk 0:01:06]}  gxf4 {[%clk 0:01:50]} 32. Rc5 {[%clk 0:01:01]}  b6 {[%clk 0:01:39]} 33. Rc1 {[%clk 0:00:55]}  c5 {[%clk 0:01:39]} 34. Rd1 {[%clk 0:00:24]}  Bb5+ {[%clk 0:01:35]} 35. Kf3 {[%clk 0:00:24]}  Bxf1 {[%clk 0:01:27]} 36. Rd2 {[%clk 0:00:23]}  c4 {[%clk 0:01:24]} 37. Kxf4 {[%clk 0:00:21]}  Bxg2 {[%clk 0:01:17]} 38. f3 {[%clk 0:00:20]}  Bf1 {[%clk 0:01:17]} 39. Rb2 {[%clk 0:00:18]}  Kc6 {[%clk 0:01:07]} 40. Kg3 {[%clk 0:00:15]}  Bd3 {[%clk 0:01:06]} 41. f4 {[%clk 0:00:15]}  c3 {[%clk 0:01:06]} 42. Rc2 {[%clk 0:00:14]}  Bxc2 {[%clk 0:01:06]} 43. b4 {[%clk 0:00:14]}  Bd3 {[%clk 0:01:06]} 44. b5+ {[%clk 0:00:14]}  Kd6 {[%clk 0:01:06]} 45. f5 {[%clk 0:00:15]}  c2 {[%clk 0:01:07]} 46. Kf4 {[%clk 0:00:16]}  c1=Q+ {[%clk 0:01:07]} 47. Kg4 {[%clk 0:00:16]}  Qg1+ {[%clk 0:01:08]} 48. Kf4 {[%clk 0:00:16]}  Rh4+ {[%clk 0:01:07]} 49. Kf3 {[%clk 0:00:17]}  Qf1+ {[%clk 0:01:07]} 50. Ke3 {[%clk 0:00:17]}  Qf4+ {[%clk 0:01:08]} 51. Kxd3 {[%clk 0:00:17]}  Rh3+ {[%clk 0:01:09]} 52. Kc2 {[%clk 0:00:17]}  Qf2+ {[%clk 0:01:09]} 53. Kd1 {[%clk 0:00:18]}  Rh1# {[%clk 0:01:10]} 0-1


[Site "https://www.chess.com"]

[Event "Titled Tuesday Blitz November 07 Late 2023"]
[White "Indjic, Aleksandar"]
[Black "Matlakov, Maxim"]
[WhiteFideId "911925"]
[BlackFideId "4168003"]
[WhiteElo "2918"]
[BlackElo "2964"]
[Result "1-0"]
[Round "10"]
[TimeControl "180+1"]
[Date "2023.11.07"]
[WhiteClock "0:00:05"]
[BlackClock "0:00:00"]
[Board "10"]

1. e4 {[%clk 0:03:00]}  c5 {[%clk 0:02:58]} 2. Nc3 {[%clk 0:03:00]}  Nc6 {[%clk 0:02:56]} 3. Bb5 {[%clk 0:02:59]}  Nd4 {[%clk 0:02:55]} 4. Nf3 {[%clk 0:03:00]}  e6 {[%clk 0:02:55]} 5. O-O {[%clk 0:02:59]}  a6 {[%clk 0:02:56]} 6. Bd3 {[%clk 0:02:59]}  Nc6 {[%clk 0:02:56]} 7. b3 {[%clk 0:02:59]}  g6 {[%clk 0:02:54]} 8. Bb2 {[%clk 0:02:58]}  Bg7 {[%clk 0:02:54]} 9. Na4 {[%clk 0:02:58]}  Bxb2 {[%clk 0:02:51]} 10. Nxb2 {[%clk 0:02:59]}  d6 {[%clk 0:02:50]} 11. a4 {[%clk 0:02:58]}  Rb8 {[%clk 0:02:46]} 12. Nc4 {[%clk 0:02:56]}  b5 {[%clk 0:02:43]} 13. axb5 {[%clk 0:02:50]}  axb5 {[%clk 0:02:44]} 14. Na3 {[%clk 0:02:50]}  b4 {[%clk 0:02:38]} 15. Nc4 {[%clk 0:02:49]}  Nge7 {[%clk 0:02:35]} 16. Re1 {[%clk 0:02:32]}  e5 {[%clk 0:02:35]} 17. Ne3 {[%clk 0:02:26]}  O-O {[%clk 0:02:32]} 18. Bc4 {[%clk 0:02:26]}  Kg7 {[%clk 0:02:31]} 19. c3 {[%clk 0:02:23]}  h6 {[%clk 0:02:27]} 20. d4 {[%clk 0:02:20]}  bxc3 {[%clk 0:02:24]} 21. dxc5 {[%clk 0:02:11]}  dxc5 {[%clk 0:02:24]} 22. Nd5 {[%clk 0:02:08]}  Nd4 {[%clk 0:02:17]} 23. Nxe5 {[%clk 0:02:06]}  Nxd5 {[%clk 0:02:14]} 24. exd5 {[%clk 0:01:57]}  Qg5 {[%clk 0:02:13]} 25. Qd3 {[%clk 0:01:39]}  Re8 {[%clk 0:01:42]} 26. Nf3 {[%clk 0:01:22]}  Rxe1+ {[%clk 0:01:10]} 27. Rxe1 {[%clk 0:01:19]}  Qf6 {[%clk 0:00:53]} 28. Rc1 {[%clk 0:01:00]}  Bf5 {[%clk 0:00:40]} 29. Qe3 {[%clk 0:00:58]}  c2 {[%clk 0:00:37]} 30. Ne5 {[%clk 0:00:56]}  Re8 {[%clk 0:00:32]} 31. f4 {[%clk 0:00:56]}  g5 {[%clk 0:00:31]} 32. g3 {[%clk 0:00:55]}  gxf4 {[%clk 0:00:30]} 33. gxf4 {[%clk 0:00:55]}  Kh7 {[%clk 0:00:30]} 34. Kh1 {[%clk 0:00:44]}  Rg8 {[%clk 0:00:29]} 35. Bd3 {[%clk 0:00:37]}  Rg7 {[%clk 0:00:22]} 36. b4 {[%clk 0:00:34]}  Bxd3 {[%clk 0:00:14]} 37. Qxd3+ {[%clk 0:00:34]}  Kh8 {[%clk 0:00:14]} 38. Qe4 {[%clk 0:00:20]}  Qh4 {[%clk 0:00:05]} 39. d6 {[%clk 0:00:15]}  Qh3 {[%clk 0:00:05]} 40. d7 {[%clk 0:00:12]}  Ne6 {[%clk 0:00:04]} 41. bxc5 {[%clk 0:00:08]}  Qc3 {[%clk 0:00:03]} 42. Qxc2 {[%clk 0:00:06]}  Qd4 {[%clk 0:00:02]} 43. Rd1 {[%clk 0:00:04]}  Qxf4 {[%clk 0:00:02]} 44. d8=Q+ {[%clk 0:00:04]}  Nxd8 {[%clk 0:00:03]} 45. Rxd8+ {[%clk 0:00:04]}  Rg8 {[%clk 0:00:04]} 46. Rxg8+ {[%clk 0:00:04]}  Kxg8 {[%clk 0:00:05]} 47. Qg2+ {[%clk 0:00:03]}  Kh7 {[%clk 0:00:05]} 48. Qc2+ {[%clk 0:00:03]}  Kg8 {[%clk 0:00:05]} 49. Qe2 {[%clk 0:00:03]}  Qc1+ {[%clk 0:00:03]} 50. Kg2 {[%clk 0:00:03]}  Qxc5 {[%clk 0:00:03]} 51. Qg4+ {[%clk 0:00:03]}  Kh8 {[%clk 0:00:02]} 52. Qf5 {[%clk 0:00:04]}  Qd5+ {[%clk 0:00:01]} 53. Kg3 {[%clk 0:00:04]}  Qb3+ {[%clk 0:00:01]} 54. Qf3 {[%clk 0:00:05]}  Qe6 {[%clk 0:00:01]} 55. Qf4 {[%clk 0:00:04]}  Qd5 {[%clk 0:00:01]} 56. Qxh6+ {[%clk 0:00:03]}  Kg8 {[%clk 0:00:01]} 57. Qg5+ {[%clk 0:00:04]}  Kh7 {[%clk 0:00:02]} 58. Qh5+ {[%clk 0:00:04]}  Kg8 {[%clk 0:00:02]} 59. Qg5+ {[%clk 0:00:04]}  Kh7 {[%clk 0:00:02]} 60. Nf3 {[%clk 0:00:05]}  Qc4 {[%clk 0:00:01]} 61. Qf5+ {[%clk 0:00:04]}  Kg8 {[%clk 0:00:00]} 62. Qg4+ {[%clk 0:00:05]} 1-0


[Site "https://www.chess.com"]

[Event "Titled Tuesday Blitz November 07 Late 2023"]
[White "Salinas Herrera, Pablo"]
[Black "Pakleza, Zbigniew"]
[WhiteFideId "3407128"]
[BlackFideId "1119290"]
[WhiteElo "2903"]
[BlackElo "2727"]
[Result "0-1"]
[Round "10"]
[TimeControl "180+1"]
[Date "2023.11.07"]
[WhiteClock "0:00:53"]
[BlackClock "0:01:02"]
[Board "12"]

1. d4 {[%clk 0:03:00]}  d6 {[%clk 0:02:59]} 2. e4 {[%clk 0:02:59]}  Nf6 {[%clk 0:02:59]} 3. Nc3 {[%clk 0:02:59]}  c6 {[%clk 0:03:00]} 4. Nf3 {[%clk 0:02:57]}  Bg4 {[%clk 0:03:00]} 5. Be2 {[%clk 0:02:57]}  e6 {[%clk 0:03:00]} 6. O-O {[%clk 0:02:57]}  d5 {[%clk 0:03:00]} 7. exd5 {[%clk 0:02:56]}  cxd5 {[%clk 0:03:00]} 8. Ne5 {[%clk 0:02:54]}  Bxe2 {[%clk 0:02:59]} 9. Nxe2 {[%clk 0:02:55]}  Nc6 {[%clk 0:02:56]} 10. Bf4 {[%clk 0:02:55]}  Bd6 {[%clk 0:02:52]} 11. Nd3 {[%clk 0:02:44]}  Bxf4 {[%clk 0:02:43]} 12. Ndxf4 {[%clk 0:02:44]}  Qb6 {[%clk 0:02:39]} 13. Rb1 {[%clk 0:02:44]}  O-O {[%clk 0:02:36]} 14. c3 {[%clk 0:02:45]}  Ne4 {[%clk 0:02:31]} 15. Nd3 {[%clk 0:02:44]}  Qc7 {[%clk 0:02:18]} 16. Ng3 {[%clk 0:02:42]}  Nd6 {[%clk 0:02:10]} 17. Qe2 {[%clk 0:02:39]}  a5 {[%clk 0:02:03]} 18. h4 {[%clk 0:02:39]}  b5 {[%clk 0:01:55]} 19. h5 {[%clk 0:02:39]}  h6 {[%clk 0:01:53]} 20. Rbc1 {[%clk 0:02:10]}  Qe7 {[%clk 0:01:45]} 21. Rfe1 {[%clk 0:01:59]}  Rab8 {[%clk 0:01:38]} 22. Ne5 {[%clk 0:01:53]}  Nxe5 {[%clk 0:01:35]} 23. dxe5 {[%clk 0:01:53]}  Nc4 {[%clk 0:01:31]} 24. Rcd1 {[%clk 0:01:50]}  b4 {[%clk 0:01:25]} 25. cxb4 {[%clk 0:01:50]}  Rxb4 {[%clk 0:01:21]} 26. b3 {[%clk 0:01:50]}  Nb6 {[%clk 0:01:16]} 27. Rd3 {[%clk 0:01:42]}  Rc8 {[%clk 0:01:09]} 28. Qe3 {[%clk 0:01:25]}  Qc5 {[%clk 0:01:06]} 29. Qf3 {[%clk 0:01:00]}  Nd7 {[%clk 0:01:04]} 30. Red1 {[%clk 0:00:53]}  Nxe5 {[%clk 0:01:02]} 0-1


[Site "https://www.chess.com"]

[Event "Titled Tuesday Blitz November 07 Late 2023"]
[White "Golubev, Mikhail"]
[Black "Kozak, Antoni"]
[WhiteFideId "14100983"]
[BlackFideId "21832030"]
[WhiteElo "2658"]
[BlackElo "2819"]
[Result "1/2-1/2"]
[Round "10"]
[TimeControl "180+1"]
[Date "2023.11.07"]
[WhiteClock "0:00:03"]
[BlackClock "0:00:07"]
[Board "14"]

1. e4 {[%clk 0:03:00]}  c5 {[%clk 0:02:59]} 2. Nf3 {[%clk 0:03:01]}  Nc6 {[%clk 0:03:00]} 3. Nc3 {[%clk 0:03:00]}  d6 {[%clk 0:02:52]} 4. d4 {[%clk 0:02:59]}  cxd4 {[%clk 0:02:52]} 5. Nxd4 {[%clk 0:03:00]}  e5 {[%clk 0:02:52]} 6. Nf5 {[%clk 0:02:59]}  Be6 {[%clk 0:02:44]} 7. Ne3 {[%clk 0:02:51]}  Nf6 {[%clk 0:02:42]} 8. Bc4 {[%clk 0:02:50]}  Be7 {[%clk 0:02:40]} 9. O-O {[%clk 0:02:46]}  Rc8 {[%clk 0:02:39]} 10. Bb3 {[%clk 0:02:17]}  Nd4 {[%clk 0:02:35]} 11. f4 {[%clk 0:02:10]}  Nxb3 {[%clk 0:02:25]} 12. axb3 {[%clk 0:02:11]}  exf4 {[%clk 0:02:25]} 13. Rxf4 {[%clk 0:02:11]}  a6 {[%clk 0:02:25]} 14. Nf5 {[%clk 0:02:06]}  O-O {[%clk 0:02:17]} 15. Nxe7+ {[%clk 0:02:01]}  Qxe7 {[%clk 0:02:17]} 16. Be3 {[%clk 0:02:01]}  Nd7 {[%clk 0:02:15]} 17. Qd2 {[%clk 0:01:49]}  Ne5 {[%clk 0:02:14]} 18. Rd1 {[%clk 0:01:47]}  Rc6 {[%clk 0:02:00]} 19. h3 {[%clk 0:01:46]}  b5 {[%clk 0:02:00]} 20. Bd4 {[%clk 0:01:39]}  Rfc8 {[%clk 0:01:57]} 21. Bxe5 {[%clk 0:01:21]}  dxe5 {[%clk 0:01:57]} 22. Rf2 {[%clk 0:01:21]}  h6 {[%clk 0:01:52]} 23. Nd5 {[%clk 0:01:15]}  Qh4 {[%clk 0:01:31]} 24. c3 {[%clk 0:01:05]}  Kh8 {[%clk 0:01:27]} 25. Qe3 {[%clk 0:01:02]}  Rd6 {[%clk 0:01:17]} 26. Rfd2 {[%clk 0:01:00]}  Rcd8 {[%clk 0:01:18]} 27. c4 {[%clk 0:00:59]}  bxc4 {[%clk 0:00:55]} 28. bxc4 {[%clk 0:01:00]}  Rc6 {[%clk 0:00:52]} 29. c5 {[%clk 0:00:55]}  Rdc8 {[%clk 0:00:52]} 30. g3 {[%clk 0:00:26]}  Qxh3 {[%clk 0:00:41]} 31. Nf6 {[%clk 0:00:24]}  gxf6 {[%clk 0:00:21]} 32. Rh2 {[%clk 0:00:23]}  Qxh2+ {[%clk 0:00:17]} 33. Kxh2 {[%clk 0:00:24]}  Kg7 {[%clk 0:00:17]} 34. b4 {[%clk 0:00:22]}  a5 {[%clk 0:00:17]} 35. bxa5 {[%clk 0:00:14]}  Rxc5 {[%clk 0:00:17]} 36. a6 {[%clk 0:00:13]}  Rc2+ {[%clk 0:00:17]} 37. Kg1 {[%clk 0:00:13]}  Ra2 {[%clk 0:00:17]} 38. a7 {[%clk 0:00:10]}  Ra8 {[%clk 0:00:16]} 39. Rf1 {[%clk 0:00:07]}  R8xa7 {[%clk 0:00:16]} 40. Qf3 {[%clk 0:00:07]}  R7a5 {[%clk 0:00:02]} 41. Qxf6+ {[%clk 0:00:07]}  Kh7 {[%clk 0:00:03]} 42. Qe7 {[%clk 0:00:07]}  Ra1 {[%clk 0:00:03]} 43. Rxa1 {[%clk 0:00:05]}  Rxa1+ {[%clk 0:00:03]} 44. Kf2 {[%clk 0:00:06]}  Ra2+ {[%clk 0:00:04]} 45. Ke3 {[%clk 0:00:06]}  Rg2 {[%clk 0:00:04]} 46. Kf3 {[%clk 0:00:05]}  Rb2 {[%clk 0:00:04]} 47. Qd6 {[%clk 0:00:05]}  Rb5 {[%clk 0:00:03]} 48. Qc6 {[%clk 0:00:04]}  Rb3+ {[%clk 0:00:03]} 49. Kf2 {[%clk 0:00:04]}  Kg6 {[%clk 0:00:04]} 50. Qc7 {[%clk 0:00:03]}  Rb2+ {[%clk 0:00:03]} 51. Kf3 {[%clk 0:00:03]}  Rb3+ {[%clk 0:00:04]} 52. Kf2 {[%clk 0:00:03]}  Kf6 {[%clk 0:00:04]} 53. Qd8+ {[%clk 0:00:03]}  Kg7 {[%clk 0:00:04]} 54. Qc7 {[%clk 0:00:03]}  Rb5 {[%clk 0:00:04]} 55. Qc6 {[%clk 0:00:02]}  Rb2+ {[%clk 0:00:05]} 56. Kf3 {[%clk 0:00:02]}  Rb3+ {[%clk 0:00:06]} 57. Kf2 {[%clk 0:00:02]}  Kf6 {[%clk 0:00:06]} 58. Qc7 {[%clk 0:00:02]}  Rb2+ {[%clk 0:00:06]} 59. Kf3 {[%clk 0:00:01]}  Rb3+ {[%clk 0:00:06]} 60. Kf2 {[%clk 0:00:02]}  Rb2+ {[%clk 0:00:05]} 61. Kf3 {[%clk 0:00:02]}  Ra2 {[%clk 0:00:05]} 62. Ke3 {[%clk 0:00:02]}  Ra3+ {[%clk 0:00:05]} 63. Kf2 {[%clk 0:00:03]}  Rb3 {[%clk 0:00:06]} 64. Kg2 {[%clk 0:00:03]}  Rb5 {[%clk 0:00:06]} 65. Kf2 {[%clk 0:00:03]}  Kg7 {[%clk 0:00:06]} 66. Kf3 {[%clk 0:00:03]}  Rb3+ {[%clk 0:00:07]} 67. Kf2 {[%clk 0:00:03]}  Rb5 {[%clk 0:00:07]} 1/2-1/2


[Site "https://www.chess.com"]